bitfinex/quotes_ETHUSD_20260113
["timestamp","ask_amount","ask_price","bid_price","bid_amount"]
[1768332515523,0.91119156,3200.8,3199.5,0.94860963]
[1768332515726,3.12433929,3200.7,3199.7,0.91735475]
[1768332515935,3.12625962,3200.8,3199.7,0.91735475]
[1768332516142,6.25051924,3200.8,3199.7,0.91735475]
[1768332516437,6.25051924,3200.8,3199.8,0.91735475]
[1768332517262,6.25051924,3200.8,3199.9,0.91735475]
[1768332517553,3.12625962,3200.8,3199.9,0.91735475]
[1768332518064,6.25051924,3200.8,3199.9,0.91735475]
[1768332518855,3.12625962,3200.8,3199.9,0.91735475]
[1768332519055,6.25051924,3200.8,3199.9,0.91735475]
[1768332519256,3.12625962,3200.8,3200.0,0.91735475]
[1768332519626,6.25051924,3200.8,3200.0,0.91735475]
[1768332520036,0.002,3200.5,3200.0,0.91735475]
[1768332521765,0.002,3200.5,3199.8,0.91735475]
[1768332524357,0.002,3200.5,3199.8,4.0425372]
[1768332524765,0.002,3200.5,3199.8,0.91735475]
[1768332526568,0.91119156,3200.5,3199.2,4.04311019]
[1768332526748,0.91119156,3200.5,3199.4,0.91735475]
[1768332527366,0.002,3200.5,3199.6,0.91735475]
[1768332527577,0.245,3200.4,3199.6,0.91735475]
[1768332527931,0.245,3200.4,3199.7,0.91735475]
[1768332528672,3.36964403,3200.4,3199.7,0.91735475]
[1768332529082,4.27883559,3200.4,3199.5,3.1254357]
[1768332529281,3.36964403,3200.4,3199.5,4.04279045]
[1768332529439,3.36964403,3200.4,3199.6,5.60150595]
[1768332529645,3.36964403,3200.4,3199.6,8.72687221]
[1768332530084,3.12464403,3200.4,3199.7,0.91735475]
[1768332530754,6.24928806,3200.4,3199.6,4.6841512]
[1768332530961,7.15847962,3200.4,3199.5,4.6841512]
[1768332531473,7.40347962,3200.4,3199.5,4.6841512]
[1768332531858,0.90919156,3200.3,3199.5,4.6841512]
[1768332532394,3.12464403,3200.4,3199.6,0.91735475]
[1768332532576,3.36964403,3200.4,3199.8,0.91835475]
[1768332532895,3.37153886,3200.5,3199.9,0.91735475]
[1768332533045,3.12653886,3200.5,3199.9,0.91735475]
[1768332534694,0.002,3200.5,3199.9,0.91735475]
[1768332535046,0.002,3200.5,3200.1,5.60150595]
[1768332535774,0.247,3200.8,3200.2,0.91735475]
[1768332536079,0.002,3201.1,3200.9,0.16293396]
[1768332536371,3.12596947,3201.1,3200.9,0.16293396]
[1768332536677,0.002,3201.1,3200.9,0.16293396]
[1768332537776,0.002,3201.1,3200.5,5.60150595]
[1768332538680,0.002,3201.1,3200.5,4.6841512]
[1768332538845,0.002,3201.1,3200.5,5.60150595]
[1768332539949,0.002,3201.1,3200.6,0.91735475]
[1768332540553,0.91119156,3201.1,3200.1,4.6841512]
[1768332540782,3.12402374,3201.0,3200.1,4.6841512]
[1768332541080,3.12402374,3201.0,3200.2,0.91735475]
[1768332541472,3.12595598,3201.1,3200.2,0.91735475]
[1768332541779,3.12595598,3201.1,3200.4,5.60150595]
[1768332542579,3.12595598,3201.1,3200.4,0.91735475]
[1768332543179,0.002,3201.1,3200.4,0.91735475]
[1768332543362,0.002,3201.1,3200.2,4.04215427]
[1768332543763,0.002,3200.8,3200.2,0.91735475]
[1768332543964,0.002,3200.8,3200.1,0.91735475]
[1768332544289,0.002,3200.8,3200.2,0.91735475]
[1768332544452,0.002,3200.8,3200.2,4.04214904]
[1768332544787,0.002,3200.8,3200.5,0.91735475]
[1768332544952,0.002,3200.8,3200.4,4.6841512]
[1768332545284,0.002,3200.8,3200.3,5.6471759]
[1768332545485,0.002,3200.8,3200.4,0.9630247]
[1768332548593,0.002,3201.1,3200.4,0.9630247]
[1768332551268,0.986207,3201.1,3200.1,0.9630247]
[1768332551492,0.984207,3200.9,3200.1,0.9630247]
[1768332551692,0.984207,3200.9,3200.1,1.86473915]
[1768332552174,0.984207,3200.9,3199.9,4.08804734]
[1768332552374,0.984207,3200.9,3200.0,4.6841512]
[1768332553205,6.24804748,3201.0,3199.8,0.001]
[1768332553206,0.984207,3200.7,3199.8,0.001]
[1768332553703,3.12441417,3200.6,3199.8,3.12614106]
[1768332554270,3.12441417,3200.6,3199.8,0.001]
[1768332555909,3.12441417,3200.6,3200.1,0.001]
[1768332556270,0.984207,3200.5,3200.1,0.001]
[1768332556476,0.984207,3200.5,3199.5,3.12543768]
[1768332556784,0.984207,3200.5,3199.4,0.16072334]
[1768332556785,0.984207,3200.5,3199.4,4.84487454]
[1768332556984,0.984207,3200.5,3199.4,7.97045196]
[1768332558908,0.99299776,3200.3,3199.4,7.97045196]
[1768332559297,0.99299776,3200.3,3199.4,8.93217361]
[1768332559699,0.99299776,3200.3,3199.4,7.97045196]
[1768332560214,0.99299776,3200.3,3199.4,8.93217361]
[1768332560382,6.24921884,3200.4,3199.5,0.96172165]
[1768332560586,3.12460942,3200.4,3199.5,0.96172165]
[1768332561013,3.12460942,3200.4,3199.5,4.08716826]
[1768332561381,7.2422166,3200.4,3199.5,0.96172165]
[1768332561577,1.23799776,3200.3,3199.4,0.16072334]
[1768332563111,0.99299776,3200.1,3199.4,0.16072334]
[1768332563914,0.99299776,3200.1,3199.4,3.28630908]
[1768332564117,3.12480469,3200.2,3199.4,3.28630908]
[1768332564326,3.12480469,3200.2,3199.4,4.24803073]
[1768332564890,3.36975648,3200.3,3199.6,5.64587285]
[1768332565318,4.36275424,3200.3,3199.4,4.24803073]
[1768332565495,0.99299776,3200.2,3199.4,0.16072334]
[1768332567314,4.1199001,3200.1,3199.4,0.16072334]
[1768332569200,0.99299776,3200.0,3199.4,0.16072334]
[1768332569396,0.002,3200.1,3199.4,0.16072334]
[1768332569600,0.99499776,3200.1,3199.4,0.16072334]
[1768332570442,0.002,3200.1,3199.4,1.12244499]
[1768332570723,0.99499776,3200.1,3199.6,4.6841512]
[1768332571023,0.002,3200.1,3199.4,4.24800859]
[1768332571230,0.002,3200.1,3199.6,4.6841512]
[1768332571413,3.12666831,3200.4,3200.1,0.16296471]
[1768332571718,0.002,3200.4,3200.1,0.16296471]
[1768332573226,0.245,3200.8,3200.1,0.16296471]
[1768332573227,0.99299776,3200.8,3200.1,0.16296471]
[1768332573397,0.99299776,3200.6,3200.1,0.16296471]
[1768332575311,4.11743141,3200.6,3200.1,0.16296471]
[1768332575730,0.98718676,3200.5,3200.1,0.16296471]
[1768332577309,0.98718676,3200.5,3199.8,0.245]
[1768332577511,4.11174618,3200.5,3199.7,7.80934965]
[1768332577815,0.98718676,3200.4,3199.7,4.9291512]
[1768332578021,0.98718676,3200.4,3199.7,8.05442625]
[1768332578214,0.98718676,3200.4,3199.7,9.26565867]
[1768332578519,0.98718676,3200.4,3199.7,6.14038362]
[1768332578695,0.98718676,3200.4,3199.7,4.9291512]
[1768332579231,0.98718676,3200.4,3199.7,8.05442743]
[1768332580200,3.12446379,3200.6,3199.8,0.93250756]
[1768332580429,3.12446379,3200.6,3200.0,4.6841512]
[1768332580632,4.11155151,3200.7,3200.0,4.6841512]
[1768332580826,4.45988609,3200.7,3200.0,4.6841512]
[1768332582726,7.58425084,3200.7,3200.0,4.6841512]
[1768332584243,4.45988609,3200.7,3200.0,4.6841512]
[1768332587852,4.44358962,3200.7,3200.0,4.6841512]
[1768332588219,0.98918676,3201.1,3200.1,0.93250756]
[1768332588424,0.98718676,3200.9,3200.1,0.93250756]
[1768332589842,0.98718676,3200.9,3199.8,3.12515479]
[1768332590043,0.98718676,3200.9,3199.8,4.05764682]
[1768332590360,3.12431655,3200.7,3199.9,0.245]
[1768332590524,4.11150331,3200.7,3199.9,0.245]
[1768332590721,4.11150331,3200.7,3199.9,1.17750756]
[1768332590954,3.12431655,3200.7,3200.0,0.93250756]
[1768332591453,3.12431655,3200.7,3200.3,0.001]
[1768332591749,2.97964831,3200.7,3200.3,0.001]
[1768332591954,2.98164831,3200.7,3200.3,0.001]
[1768332592152,6.10596486,3200.7,3200.3,0.001]
[1768332592344,7.09315162,3200.7,3200.3,0.001]
[1768332592652,4.11169855,3200.5,3200.3,0.001]
[1768332593659,3.12445587,3200.6,3200.3,0.001]
[1768332594355,4.11354284,3200.7,3200.3,0.001]
[1768332597457,3.12635608,3200.7,3200.3,0.001]
[1768332598028,3.12635608,3200.7,3200.0,0.86943566]
[1768332598231,3.12635608,3200.7,3200.2,0.93250756]
[1768332598633,0.002,3200.7,3200.2,0.93250756]
[1768332601387,0.98918676,3200.7,3199.9,0.93250756]
[1768332601545,0.002,3200.7,3200.1,0.93250756]
[1768332601742,0.002,3200.7,3199.9,3.12508023]
[1768332601743,0.002,3200.7,3200.2,0.93250756]
[1768332601929,0.002,3200.7,3200.3,0.93250756]
[1768332602352,0.98918676,3200.7,3200.0,0.245]
[1768332602859,0.98918676,3200.7,3199.9,0.93250756]
[1768332603066,3.12441417,3200.6,3199.9,1.17750756]
[1768332603739,3.12441417,3200.6,3200.3,0.001]
[1768332603944,0.98918676,3200.7,3200.3,0.001]
[1768332604140,3.1263536,3200.7,3200.3,0.001]
[1768332604546,6.2507072,3200.7,3200.3,0.001]
[1768332604755,0.98718676,3200.6,3200.3,0.001]
[1768332604979,3.12451179,3200.5,3200.3,0.001]
[1768332605282,0.90561001,3200.4,3199.5,4.83764019]
[1768332605577,0.90561001,3200.4,3199.4,0.245]
[1768332605784,0.90561001,3200.2,3199.4,0.245]
[1768332606413,0.90561001,3200.4,3199.5,4.11307856]
[1768332606589,0.913575,3200.4,3199.5,4.11307856]
[1768332607261,3.12470705,3200.3,3199.6,0.98764019]
[1768332608282,0.00796499,3200.2,3199.6,0.98764019]
[1768332608488,0.90561001,3200.2,3199.4,1.23264019]
[1768332608661,0.90561001,3200.2,3199.3,0.245]
[1768332608856,0.90561001,3200.2,3199.2,0.245]
[1768332609058,0.90561001,3200.2,3199.2,3.37075883]
[1768332609681,0.90561001,3200.0,3199.2,3.37075883]
[1768332609883,3.12490234,3200.1,3199.3,0.98764019]
[1768332610088,0.90561001,3200.0,3199.2,3.37075883]
[1768332610492,0.245,3200.4,3199.2,3.37075883]
[1768332610493,3.36963781,3200.4,3199.3,5.67040529]
[1768332610719,3.12441417,3200.6,3199.7,0.98764019]
[1768332611006,0.90761001,3200.7,3199.8,1.01889214]
[1768332611007,4.03197111,3200.7,3199.8,1.01889214]
[1768332611307,7.15633221,3200.7,3199.8,1.01889214]
[1768332611509,7.15633221,3200.7,3199.8,0.98764019]
[1768332611794,0.90561001,3200.6,3199.8,0.98764019]
[1768332612087,0.90561001,3200.6,3199.7,0.16294644]
[1768332612300,0.90561001,3200.4,3199.7,0.16294644]
[1768332612503,0.90561001,3200.2,3199.7,0.16294644]
[1768332612700,0.913575,3200.1,3199.3,0.245]
[1768332613196,0.90561001,3200.1,3199.3,0.69713395]
[1768332613396,0.00996499,3200.7,3199.4,3.12553657]
[1768332613397,0.90561001,3200.3,3199.4,3.12553657]
[1768332613601,0.90561001,3200.3,3199.5,3.12547709]
[1768332613805,4.03036054,3200.3,3199.4,4.11322623]
[1768332615099,3.12463582,3200.4,3199.5,0.98764019]
[1768332615302,0.90561001,3200.3,3199.4,3.12558604]
[1768332615491,0.90561001,3200.3,3199.7,0.001]
[1768332615673,0.002,3200.1,3199.7,0.001]
[1768332617108,0.002,3200.1,3199.8,0.97899309]
[1768332617316,0.002,3200.1,3199.7,0.001]
[1768332619273,0.002,3200.1,3199.7,0.97999309]
[1768332620198,0.002,3200.1,3199.7,0.001]
[1768332621484,0.98098076,3200.0,3199.7,0.001]
[1768332622965,4.10600136,3200.0,3199.7,0.001]
[1768332623203,0.98098076,3200.0,3199.7,0.001]
[1768332623410,0.98894575,3199.9,3199.2,0.15996467]
[1768332623704,0.98098076,3199.9,3198.9,0.00080072]
[1768332624068,0.98098076,3199.9,3198.9,3.12687394]
[1768332624264,0.98098076,3199.9,3198.9,0.00080072]
[1768332624502,0.98098076,3199.7,3199.0,3.12592055]
[1768332624800,0.98098076,3199.7,3198.9,3.1268753]
[1768332625166,4.10631507,3199.7,3198.9,3.1268753]
[1768332625366,0.98098076,3199.6,3198.9,0.00080072]
[1768332626896,0.98178148,3199.3,3198.4,0.97899309]
[1768332627198,0.00080072,3199.3,3198.5,0.97899309]
[1768332627502,0.98178148,3199.3,3198.3,1.13980144]
[1768332627999,0.00080072,3199.3,3198.4,0.97899309]
[1768332629106,0.00080072,3199.3,3198.5,0.97899309]
[1768332629905,0.98178148,3199.3,3198.5,0.97899309]
[1768332631708,3.12578144,3199.2,3198.5,0.97899309]
[1768332631872,0.98098076,3199.1,3198.3,0.16080835]
[1768332632719,6.25156288,3199.2,3198.3,5.82256654]
[1768332632925,0.98098076,3199.5,3198.7,0.97899309]
[1768332633225,1.22598076,3199.8,3198.9,4.6835659]
[1768332633628,6.25058598,3199.7,3199.0,0.97899309]
[1768332634013,3.12510039,3199.9,3199.2,4.6827651]
[1768332634321,3.12510039,3199.9,3199.2,5.66175819]
[1768332634507,4.10598076,3200.0,3199.2,5.66175819]
[1768332635108,7.23098076,3200.0,3199.2,5.66175819]
[1768332635312,4.10598076,3200.0,3199.2,5.66175819]
[1768332635527,7.23098076,3200.0,3199.2,5.66175819]
[1768332635708,3.125,3200.0,3199.3,0.94275994]
[1768332635909,3.125,3200.0,3199.2,5.28085692]
[1768332635910,0.002,3200.1,3199.5,4.6827651]
[1768332636227,0.002,3200.4,3199.6,0.94275994]
[1768332637002,3.12470705,3200.3,3199.6,0.94275994]
[1768332637501,6.2494141,3200.3,3199.6,0.94275994]
[1768332638300,3.12660942,3200.4,3199.6,1.52981244]
[1768332638596,6.25123106,3200.4,3199.6,1.52981244]
[1768332638796,6.25123106,3200.4,3199.2,0.59809182]
[1768332638797,0.92583979,3200.3,3199.2,0.59809182]
[1768332639130,0.92783979,3200.1,3199.3,0.245]
[1768332639931,0.92783979,3200.1,3199.3,1.18775994]
[1768332640138,0.002,3200.1,3199.3,1.18775994]
[1768332641462,3.12474193,3200.3,3199.5,0.94275994]
[1768332641617,4.0521958,3200.7,3200.0,4.6827651]
[1768332641804,3.12635601,3200.7,3200.0,4.6827651]
[1768332642133,3.12635601,3200.7,3199.9,5.62552504]
[1768332642327,7.17655181,3200.7,3199.9,4.6827651]
[1768332643405,0.92583979,3200.6,3199.9,4.6827651]
[1768332643608,0.92583979,3200.6,3199.9,5.48806873]
[1768332644362,3.12447213,3200.6,3199.9,5.48806873]
[1768332644558,3.12447213,3200.6,3199.9,0.80530363]
[1768332644762,3.12447213,3200.6,3199.9,1.74806357]
[1768332644977,0.92583979,3200.5,3199.9,0.80530363]
[1768332645146,0.92583979,3200.5,3199.8,0.245]
[1768332645841,0.92783979,3200.7,3199.8,4.31294887]
[1768332646041,0.92783979,3200.7,3199.9,0.94275994]
[1768332646664,4.05215647,3200.7,3199.9,0.94275994]
[1768332647334,0.92783979,3200.7,3199.9,0.94275994]
[1768332647645,0.002,3200.7,3199.9,0.94275994]
[1768332647846,0.002,3200.7,3200.0,2.15485087]
[1768332648862,0.002,3200.7,3200.0,5.27984126]
[1768332649833,4.0517699,3201.1,3200.2,4.06751271]
[1768332650171,4.0517699,3201.1,3200.3,0.245]
[1768332650342,0.92583979,3201.0,3200.3,0.245]
[1768332650542,0.002,3200.4,3200.3,1.05025179]
[1768332650772,0.92583979,3201.0,3200.3,1.05025179]
[1768332650773,0.002,3200.7,3200.3,1.05025179]
[1768332651251,3.12593011,3201.1,3200.3,1.05025179]
[1768332651451,3.12593011,3201.1,3200.4,4.68193233]
[1768332653826,3.12593011,3201.1,3200.3,4.17494663]
[1768332653827,3.12593011,3201.1,3200.3,1.05025179]
[1768332654234,3.12593011,3201.1,3200.3,1.99301173]
[1768332654794,7.17570001,3201.1,3200.3,1.99301173]
[1768332656332,4.0517699,3201.1,3200.3,5.11769667]
[1768332656623,4.0517699,3201.1,3200.3,1.99301173]
[1768332656838,4.0517699,3201.1,3200.4,0.94275994]
[1768332657598,3.12593011,3201.1,3200.4,0.94275994]
[1768332658308,0.002,3201.1,3200.4,0.94275994]
[1768332658504,0.002,3201.1,3200.5,1.14206111]
[1768332660097,0.92783979,3201.1,3200.2,0.94275994]
[1768332660404,0.92583979,3200.6,3199.9,0.001]
[1768332660810,0.93380478,3200.6,3199.9,0.001]
[1768332661036,0.92583979,3200.4,3199.9,0.001]
[1768332662423,0.245,3200.6,3199.9,0.001]
[1768332662740,6.24902358,3200.5,3199.9,0.001]
[1768332663450,0.92583979,3200.4,3199.9,0.001]
[1768332663856,0.92583979,3200.3,3199.9,0.001]
[1768332664144,0.92583979,3200.1,3199.9,0.001]
[1768332664351,3.12487663,3200.2,3199.9,0.001]
[1768332665544,7.165242,3200.2,3199.9,0.001]
[1768332665846,4.04036537,3200.2,3199.9,0.001]
[1768332666048,0.91550035,3200.1,3199.9,0.001]
[1768332666344,4.0404285,3200.1,3199.9,0.001]
[1768332667049,4.04023008,3200.3,3199.9,0.001]
[1768332667342,0.91550035,3200.2,3199.9,0.001]
[1768332668345,0.91550035,3200.2,3199.2,3.3707781]
[1768332668648,0.91550035,3200.0,3199.3,0.42855289]
[1768332669013,3.12490234,3200.1,3199.3,0.42855289]
[1768332669014,4.04040269,3200.1,3199.3,0.42855289]
[1768332669443,3.12483359,3200.2,3199.3,1.34330369]
[1768332669646,4.04025174,3200.3,3199.4,0.94600666]
[1768332670215,7.16500313,3200.3,3199.4,2.17005594]
[1768332670422,3.12475139,3200.3,3199.5,0.9147508]
[1768332670624,0.91550035,3200.3,3199.4,1.25530514]
[1768332671034,0.92346534,3200.3,3199.3,0.42855289]
[1768332671245,0.92346534,3200.3,3199.3,0.245]
[1768332672354,0.91550035,3200.2,3199.0,11.82077958]
[1768332672562,0.91550035,3199.7,3199.0,4.2579252]
[1768332672860,0.91550035,3199.7,3199.0,7.38389747]
[1768332673358,0.91550035,3199.7,3199.1,0.73846983]
[1768332674431,0.91550035,3199.7,3199.0,3.53389747]
[1768332675152,0.91550035,3199.7,3199.4,0.001]
[1768332677853,4.04003877,3199.9,3199.4,0.001]
[1768332679589,0.91489138,3199.8,3199.4,0.001]
[1768332682585,4.04003877,3199.9,3199.4,0.001]
[1768332682751,0.91489138,3199.8,3199.4,0.001]
[1768332682954,3.12514739,3199.9,3199.4,0.001]
[1768332684377,0.91489138,3199.8,3199.4,0.001]
[1768332684785,0.91489138,3199.8,3199.0,4.46851819]
[1768332684786,0.91489138,3200.7,3199.1,0.93166283]
[1768332684959,0.002,3200.8,3200.3,4.68193233]
[1768332685285,0.002,3200.8,3200.0,4.68193233]
[1768332685286,4.04112317,3200.8,3200.0,1.17966283]
[1768332685486,0.91489138,3200.7,3200.0,0.245]
[1768332685785,0.91489138,3200.5,3200.0,0.245]
[1768332685985,4.0395008,3200.4,3199.8,0.245]
[1768332686166,0.91489138,3200.3,3199.8,0.245]
[1768332687878,0.002,3200.4,3199.8,0.245]
[1768332688253,0.91689138,3200.4,3199.7,0.001]
[1768332689477,0.002,3200.4,3199.7,0.93566283]
[1768332690289,0.002,3200.4,3199.8,5.61659516]
[1768332690489,0.002,3200.4,3199.7,0.001]
[1768332690490,0.002,3200.7,3200.3,4.68193233]
[1768332690680,0.002,3200.8,3200.3,4.68193233]
[1768332690878,0.002,3200.8,3200.4,0.93466283]
[1768332691601,0.002,3201.1,3200.7,0.93466283]
[1768332691765,0.002,3201.1,3200.4,0.93466283]
[1768332691970,3.1259284,3201.1,3200.4,0.93466283]
[1768332692172,3.0759284,3201.1,3200.4,0.93466283]
[1768332692374,3.12563341,3201.4,3200.4,0.93466283]
[1768332692563,0.33706334,3201.3,3200.4,0.93466283]
[1768332693299,1.25195472,3201.3,3200.3,4.68193233]
[1768332693602,0.91489138,3201.2,3200.3,4.68193233]
[1768332694198,0.91489138,3201.2,3200.3,7.80657111]
[1768332694371,3.1238931,3201.2,3200.6,4.68193233]
[1768332695206,0.002,3201.4,3200.6,5.24359185]
[1768332695410,0.92075924,3201.4,3200.6,5.24359185]
[1768332695778,7.16805118,3201.4,3200.6,5.24359185]
[1768332695983,4.0444108,3201.4,3200.9,4.68193233]
[1768332696180,0.002,3201.4,3201.2,4.68193233]
[1768332696398,3.12350189,3201.6,3200.9,5.15012556]
[1768332696585,6.24700378,3201.6,3200.9,5.15012556]
[1768332696780,7.16576302,3201.6,3200.9,0.46819323]
[1768332697100,0.91875924,3201.5,3200.7,0.245]
[1768332697891,0.91875924,3201.3,3200.7,0.245]
[1768332698076,0.91875924,3201.3,3200.5,0.245]
[1768332698475,0.92672423,3201.2,3200.5,0.245]
[1768332698882,0.91875924,3201.2,3200.2,7.80665688]
[1768332699088,0.91875924,3201.2,3200.3,1.02566569]
[1768332700302,4.04266555,3201.2,3200.3,4.150355]
[1768332700805,4.04266555,3201.2,3200.5,4.68193233]
[1768332701387,3.12390631,3201.2,3200.5,4.68193233]
[1768332701811,4.04266555,3201.2,3200.5,4.68193233]
[1768332702690,3.12390631,3201.2,3200.5,4.68193233]
[1768332703377,3.12390631,3201.2,3200.5,4.71317744]
[1768332703807,3.12390631,3201.2,3200.5,4.68193233]
[1768332704411,7.16657186,3201.2,3200.5,4.68193233]
[1768332704619,4.04266555,3201.2,3200.5,4.68193233]
[1768332705193,0.91875924,3201.1,3200.4,4.68193233]
[1768332706622,0.002,3201.3,3201.0,4.68193233]
[1768332709109,0.002,3201.3,3200.8,1.20901985]
[1768332709318,0.92075924,3201.3,3200.8,0.245]
[1768332709526,0.92672423,3201.2,3200.3,0.96401985]
[1768332709717,0.92672423,3201.2,3200.2,0.245]
[1768332709912,0.91875924,3201.2,3200.2,0.245]
[1768332710129,0.91875924,3201.2,3200.2,4.92693233]
[1768332710501,0.91875924,3201.0,3200.2,4.92693233]
[1768332710839,0.91875924,3201.0,3200.2,5.89095218]
[1768332711437,0.91875924,3201.0,3200.2,0.96401985]
[1768332712611,3.12412134,3200.9,3200.2,0.96401985]
[1768332712816,6.24824268,3200.9,3200.2,0.96401985]
[1768332713639,3.12385353,3201.2,3200.3,0.96401985]
[1768332713824,3.12385353,3201.2,3200.4,0.96401985]
[1768332714143,3.12385353,3201.2,3200.5,0.96401985]
[1768332714336,3.1257681,3201.3,3200.5,0.96401985]
[1768332714517,3.1257681,3201.3,3200.6,0.96401985]
[1768332715029,0.002,3201.3,3200.6,0.96401985]
[1768332716416,0.00996499,3201.3,3200.6,0.96401985]
[1768332717246,3.12382856,3201.2,3200.6,1.43179853]
[1768332717942,3.12577588,3201.3,3200.6,1.43179853]
[1768332718144,3.12577588,3201.3,3200.7,0.96401985]
[1768332718475,0.002,3201.3,3200.8,0.96401985]
[1768332718758,3.1235619,3201.5,3200.9,0.96401985]
[1768332719062,3.1235619,3201.5,3200.8,0.245]
[1768332719362,3.12543828,3201.6,3200.8,0.245]
[1768332719559,3.12543828,3201.6,3200.9,0.96401985]
[1768332720470,0.91875924,3201.9,3201.3,4.68280924]
[1768332720616,0.002,3202.1,3201.6,4.68280924]
[1768332720820,3.12498605,3202.1,3201.3,5.89182909]
[1768332721130,3.12498605,3202.1,3201.4,0.58918291]
[1768332721343,3.12498605,3202.1,3201.5,0.245]
[1768332721344,4.04190487,3201.9,3201.5,0.245]
[1768332721545,0.91875924,3201.8,3201.2,0.245]
[1768332722818,0.91875924,3201.8,3201.2,0.17199935]
[1768332723262,3.12334072,3201.7,3201.2,0.17199935]
[1768332724063,4.04209996,3201.7,3201.2,0.17199935]
[1768332724259,4.04209996,3201.7,3200.9,8.77092324]
[1768332724260,4.04209996,3201.7,3200.9,7.80690339]
[1768332724422,4.04209996,3201.7,3201.1,0.245]
[1768332724967,0.91875924,3201.7,3201.1,0.245]
[1768332725470,4.04210729,3201.7,3201.1,0.245]
[1768332725764,0.91875924,3201.7,3201.1,0.245]
[1768332726248,4.0421163,3201.7,3201.1,0.245]
[1768332726449,4.0421163,3201.7,3201.1,1.13774116]
[1768332726709,0.91875924,3201.7,3201.1,1.13774116]
[1768332728180,3.12327153,3201.8,3201.1,4.26166497]
[1768332728471,4.03678371,3201.9,3201.1,1.13774116]
[1768332728977,7.15997249,3201.9,3201.1,1.13774116]
[1768332729272,0.91359493,3201.8,3201.1,1.13774116]
[1768332729631,0.002,3202.1,3201.2,0.96146617]
[1768332729847,0.91559493,3202.1,3201.2,0.96146617]
[1768332730346,0.91559493,3202.1,3201.1,0.245]
[1768332730959,0.91559493,3202.1,3201.1,1.20646617]
[1768332732067,7.15969111,3202.0,3201.1,1.20646617]
[1768332732871,7.15969111,3202.0,3201.2,0.96146617]
[1768332733858,0.91359493,3201.9,3201.1,0.245]
[1768332734053,3.12324317,3201.8,3201.1,1.20646617]
[1768332734373,0.91359493,3201.8,3201.1,0.245]
[1768332734536,0.91559493,3201.8,3201.1,0.245]
[1768332734867,0.91559493,3201.8,3200.7,0.245]
[1768332735072,0.91359493,3201.6,3200.7,0.245]
[1768332735366,0.91359493,3201.6,3200.5,3.12544728]
[1768332735539,0.91359493,3201.6,3200.7,0.245]
[1768332735925,0.91359493,3201.6,3200.7,4.33076684]
[1768332736229,3.12353584,3201.5,3200.7,4.33076684]
[1768332736424,3.12353584,3201.5,3200.8,0.96976285]
[1768332737353,4.08219239,3201.5,3200.8,0.96976285]
[1768332738146,4.08219239,3201.5,3200.8,1.21476285]
[1768332738751,0.95865655,3201.4,3200.8,0.245]
[1768332738957,0.95865655,3201.3,3200.8,0.245]
[1768332739561,0.95865655,3201.3,3200.7,0.245]
[1768332740388,0.95865655,3201.1,3200.5,0.001]
[1768332742463,0.95865655,3200.9,3200.5,0.001]
[1768332744355,4.08281003,3200.9,3200.5,0.001]
[1768332746951,4.08281003,3200.9,3200.8,0.001]
[1768332747158,0.95865655,3200.9,3200.5,0.001]
[1768332748589,3.12406853,3201.0,3200.5,0.001]
[1768332749390,4.08272508,3201.0,3200.5,0.001]
[1768332751495,0.95865655,3200.9,3200.5,0.001]
[1768332751870,0.96662154,3200.8,3200.5,0.001]
[1768332752195,6.24816986,3201.0,3200.5,0.001]
[1768332752566,7.20682641,3201.0,3200.5,0.001]
[1768332752784,0.95865655,3200.9,3200.5,0.001]
[1768332753173,0.95865655,3200.7,3200.5,0.001]
[1768332753375,0.95865655,3200.7,3200.0,4.33975278]
[1768332753695,0.95865655,3201.1,3200.1,0.96976285]
[1768332754599,3.12382856,3201.2,3200.2,1.00101089]
[1768332754769,3.12382856,3201.2,3200.4,0.96976285]
[1768332754969,3.12382856,3201.2,3200.6,0.97452022]
[1768332755168,6.24756184,3201.3,3200.6,0.97452022]
[1768332755374,7.18815258,3201.3,3200.5,0.245]
[1768332756678,0.94059074,3201.2,3200.5,0.245]
[1768332757366,0.94059074,3201.0,3200.1,0.97452022]
[1768332757566,0.94059074,3201.0,3200.2,0.245]
[1768332757886,0.94855573,3200.9,3200.2,0.245]
[1768332758285,0.94855573,3200.9,3200.1,0.97452022]
[1768332758486,0.94855573,3200.9,3200.2,0.245]
[1768332759081,0.94855573,3200.9,3200.2,0.243]
[1768332759270,7.18902862,3200.8,3200.2,0.243]
[1768332759599,0.00796499,3200.7,3200.2,0.243]
[1768332760100,7.18902862,3200.8,3200.2,0.243]
[1768332760691,4.06480968,3200.8,3200.2,0.243]
[1768332760897,4.06480968,3200.8,3200.1,0.245]
[1768332761092,4.06480968,3200.8,3200.1,1.21952022]
[1768332762006,7.18902862,3200.8,3200.1,1.21952022]
[1768332762303,0.94059074,3200.7,3199.7,0.001]
[1768332762482,0.94059074,3200.7,3199.0,0.97452022]
[1768332762483,0.94059074,3200.3,3199.0,0.97452022]
[1768332762798,0.94059074,3200.3,3199.1,0.97452022]
[1768332762965,0.94059074,3200.3,3199.3,0.97452022]
[1768332763171,0.94059074,3200.5,3199.3,1.00577705]
[1768332763791,7.18980958,3200.4,3199.3,1.00577705]
[1768332764495,10.314419,3200.4,3199.3,0.97452022]
[1768332764699,0.94059074,3200.3,3199.3,0.97452022]
[1768332766004,3.12460942,3200.4,3199.3,0.97452022]
[1768332767079,0.002,3202.9,3202.4,0.97452022]
[1768332767411,0.94059074,3204.0,3202.5,4.19167029]
[1768332767573,6.4462892,3203.9,3202.6,0.245]
[1768332767774,0.20387138,3203.9,3202.6,0.245]
[1768332768102,3.12139089,3203.7,3202.7,0.245]
[1768332768303,6.24278178,3203.7,3202.8,0.145]
[1768332769089,3.12139089,3203.7,3202.8,0.145]
[1768332769591,3.12139089,3203.7,3202.9,0.245]
[1768332770107,7.18307939,3203.9,3202.9,0.245]
[1768332770310,0.94855573,3203.8,3202.1,0.00080024]
[1768332770486,0.94855573,3203.8,3202.2,0.245]
[1768332770678,0.002,3203.4,3202.5,3.12255888]
[1768332771118,0.002,3203.4,3202.6,0.245]
[1768332772304,0.002,3203.4,3202.6,3.36746235]
[1768332772816,0.002,3203.4,3202.5,3.12252869]
[1768332773014,0.002,3203.4,3202.7,0.245]
[1768332774909,7.15227252,3203.7,3202.7,0.245]
[1768332775691,7.15227252,3203.7,3202.7,3.36735269]
[1768332777320,0.94059074,3203.6,3202.7,3.36735269]